lending/lending_fUSD_20251107
["ID","MTS","AMOUNT","RATE_DAILY","PERIOD"]
[393353594,1762511401648,300.0,0.00014999,2]
[393353595,1762511402487,150.0,0.00014999,2]
[393353596,1762511404128,300.0,0.00014999,2]
[393353640,1762511432066,-2029.41050021,0.00015,2]
[393353643,1762511432076,-6608.3006691,0.00015,2]
[393353663,1762511432178,-6929.21077758,0.00015,2]
[393353666,1762511432190,-1014.88859335,0.00015,2]
[393353670,1762511432200,-5517.3265029,0.00015,2]
[393353673,1762511432211,-10442.07470698,0.00015,2]
[393353681,1762511432284,-2388.2175933,0.00015,2]
[393353682,1762511432392,-1023.11758796,0.00015,2]
[393353699,1762511440100,-48745.36342366,0.00015,2]
[393353700,1762511440111,-10000.01,0.00015,2]
[393353701,1762511440120,-921.06124669,0.00015653,2]
[393353702,1762511440130,-255.0,0.00016124,2]
[393353703,1762511440140,-200.0,0.00016306,2]
[393353704,1762511440149,-200.0,0.00016306,2]
[393353705,1762511440159,-200.0,0.00016307,2]
[393353706,1762511440175,-200.0,0.00016307,2]
[393353707,1762511440185,-226.0,0.000164,2]
[393353708,1762511440195,-317.0,0.000164,2]
[393353709,1762511440206,-420.0,0.00016416,2]
[393353710,1762511440216,-500.0,0.00016438,2]
[393353711,1762511440225,-500.0,0.00016438,2]
[393353712,1762511440235,-500.0,0.00016438,2]
[393353713,1762511440244,-500.0,0.00016438,2]
[393353714,1762511440254,-264.62647715,0.00016438,2]
[393353715,1762511440263,-1043.34,0.00016438,2]
[393353716,1762511440273,-1680.0,0.00016499,2]
[393353717,1762511440283,-300.0,0.000165,2]
[393353718,1762511440293,-195.0,0.000165,2]
[393353719,1762511440303,-250.0,0.000165,2]
[393353720,1762511440313,-313.95616307,0.000165,2]
[393353721,1762511440322,-250.0,0.000165,2]
[393353722,1762511440332,-2500.0,0.000165,2]
[393353723,1762511440342,-300.0,0.000165,2]
[393353724,1762511440351,-1000.0,0.00016601,2]
[393353725,1762511440361,-165.98,0.0001695,2]
[393353726,1762511440371,-773.21698856,0.00017,2]
[393353727,1762511440380,-264.0,0.00017116,2]
[393353728,1762511440390,-527.72,0.00017236,2]
[393353729,1762511440399,-500.0,0.00017315,2]
[393353730,1762511440409,-273.0,0.00017334,2]
[393353731,1762511440421,-5283.01,0.00017337,2]
[393353732,1762511440430,-999.99,0.00017337,2]
[393353733,1762511440439,-9999.99,0.00017337,2]
[393353734,1762511440449,-9999.99,0.00017337,2]
[393353735,1762511440458,-150.99,0.00017337,2]
[393353736,1762511440467,-433.0,0.00017339,2]
[393353737,1762511440476,-500.0,0.00017616,2]
[393353738,1762511440485,-872.5098526,0.00017672,2]
[393353739,1762511440494,-150.99,0.00017676,2]
[393353740,1762511440503,-12027.77,0.00017676,2]
[393353741,1762511440512,-33266.2593,0.00017679,2]
[393353742,1762511440521,-211.08813927,0.00017768,2]
[393353743,1762511440531,-252.82090403,0.00017897,2]
[393353745,1762511440540,-3163.63163768,0.00017898,2]
[393353746,1762511440549,-390.28659816,0.00017898,2]
[393353748,1762511440558,-607.57439701,0.000179,2]
[393353749,1762511440567,-300.0,0.00017914,2]
[393353750,1762511440576,-250.0,0.00017936,2]
[393353751,1762511440587,-151.0,0.00017962,2]
[393353752,1762511440596,-151.0,0.00017962,2]
[393353753,1762511440605,-151.0,0.00017962,2]
[393353754,1762511440614,-151.0,0.00017962,2]
[393353755,1762511440623,-151.0,0.00017962,2]
[393353756,1762511440633,-151.0,0.00017962,2]
[393353757,1762511440642,-151.0,0.00017962,2]
[393353759,1762511440651,-151.0,0.00017962,2]
[393353761,1762511440660,-151.0,0.00017962,2]
[393353762,1762511440672,-151.0,0.00017962,2]
[393353763,1762511440681,-151.0,0.00017962,2]
[393353764,1762511440691,-151.0,0.00017962,2]
[393353765,1762511440701,-151.0,0.00017962,2]
[393353766,1762511440710,-151.0,0.00017962,2]
[393353767,1762511440719,-151.0,0.00017962,2]
[393353768,1762511440728,-151.0,0.00017962,2]
[393353769,1762511440737,-151.0,0.00017962,2]
[393353770,1762511440747,-151.0,0.00017962,2]
[393353771,1762511440756,-151.0,0.00017962,2]
[393353772,1762511440765,-151.0,0.00017962,2]
[393353773,1762511440774,-587.0,0.00017966,2]
[393353774,1762511440784,-502.73555537,0.00017973,2]
[393353775,1762511440793,-525.88457215,0.00017973,2]
[393353776,1762511440802,-500.0,0.00017973,2]
[393353777,1762511440811,-500.0,0.00017973,2]
[393353778,1762511440821,-175.41342422,0.00017973,2]
[393353779,1762511440830,-500.52187135,0.00017973,2]
[393353780,1762511440839,-500.0,0.00017973,2]
[393353781,1762511440849,-500.0,0.00017973,2]
[393353782,1762511440859,-500.0,0.00017973,2]
[393353783,1762511440868,-566.03408857,0.00017973,2]
[393353784,1762511440877,-500.0,0.00017973,2]
[393353785,1762511440887,-500.0,0.00017973,2]
[393353786,1762511440896,-500.99289693,0.00017973,2]
[393353787,1762511440906,-500.0,0.00017973,2]
[393353788,1762511440916,-500.0,0.00017973,2]
[393353789,1762511440928,-527.74056507,0.00017973,2]
[393353790,1762511440938,-500.0,0.00017973,2]
[393353791,1762511440948,-500.0,0.00017973,2]
[393353792,1762511440961,-500.0,0.00017973,2]
[393353793,1762511440970,-500.0,0.00017973,2]
[393353794,1762511440979,-224.98716756,0.00017973,2]
[393353795,1762511440990,-500.0,0.00017973,2]
[393353796,1762511440999,-500.60577954,0.00017973,2]
[393353797,1762511441008,-511.48719311,0.00017973,2]
[393353798,1762511441017,-500.0,0.00017973,2]
[393353799,1762511441027,-500.0,0.00017973,2]
[393353800,1762511441036,-500.0,0.00017973,2]
[393353801,1762511441045,-182.8775756,0.00017973,2]
[393353802,1762511441243,-500.0,0.00017973,2]
[393353803,1762511441253,-500.0,0.00017973,2]
[393353804,1762511441262,-500.0,0.00017973,2]
[393353805,1762511441271,-364.18,0.00017973,2]
[393353806,1762511441280,-163.36,0.00017988,2]
[393353807,1762511441290,-12550.5244606,0.00017993,2]
[393353808,1762511441298,-50790.7263353,0.00017993,2]
[393353809,1762511441308,-151.0,0.00017995,2]
[393353810,1762511441317,-500.0,0.00017997,2]
[393353811,1762511441328,-150.0,0.00017997,2]
[393353812,1762511441336,-152.54084993,0.00017997,2]
[393353813,1762511441345,-500.0,0.00017997,2]
[393353814,1762511441355,-150.0,0.00017997,2]
[393353815,1762511441364,-150.0,0.00017997,2]
[393353816,1762511441372,-150.0,0.00017997,2]
[393353817,1762511441381,-161.91063358,0.00017997,2]
[393353818,1762511441392,-500.0,0.00017997,2]
[393353819,1762511441401,-500.0,0.00017997,2]
[393353820,1762511441411,-150.0,0.00017997,2]
[393353821,1762511441420,-500.0,0.00017997,2]
[393353822,1762511441429,-150.0,0.00017997,2]
[393353823,1762511441438,-151.37831442,0.00017997,2]
[393353824,1762511441447,-150.0,0.00017997,2]
[393353825,1762511441456,-500.0,0.00017997,2]
[393353826,1762511441465,-656.0,0.00017997,2]
[393353827,1762511441474,-150.0,0.00017997,2]
[393353828,1762511441484,-500.0,0.00017997,2]
[393353829,1762511441493,-529.0,0.00017997,2]
[393353830,1762511441503,-504.54,0.00017997,2]
[393353831,1762511441512,-500.0,0.00017997,2]
[393353832,1762511441521,-150.0,0.00017997,2]
[393353833,1762511441531,-203.48893781,0.00017997,2]
[393353834,1762511441540,-181.60516061,0.00017997,2]
[393353835,1762511441550,-212.74955591,0.00017997,2]
[393353836,1762511441560,-500.0,0.00017997,2]
[393353837,1762511441568,-150.0,0.00017997,2]
[393353838,1762511441579,-151.0,0.00017997,2]
[393353839,1762511441588,-434.7518673,0.00017997,2]
[393353840,1762511441597,-328.37489076,0.00017998,2]
[393353841,1762511441608,-2920.7483985,0.00017998,2]
[393353842,1762511441618,-62297.0588818,0.00017998,2]
[393353843,1762511441627,-15137.8921169,0.00017998,2]
[393353844,1762511441637,-253.4049455,0.00017998,2]
[393353845,1762511441646,-150.0,0.00017998,2]
[393353846,1762511441656,-150.0,0.00017998,2]
[393353847,1762511441666,-150.0,0.00017998,2]
[393353848,1762511441676,-150.0,0.00017998,2]
[393353849,1762511441686,-150.1564337,0.00017998,2]
[393353850,1762511441695,-163.8276898,0.00017998,2]
[393353851,1762511441704,-179779.4360491,0.00017998,2]
[393353852,1762511441713,-3897.53483,0.00017998,2]
[393353853,1762511441722,-1000.0,0.00017998,2]
[393353854,1762511441731,-358.859,0.00017998,2]
[393353855,1762511441740,-1000.0,0.00017998,2]
[393353856,1762511441749,-504.54,0.00017999,2]
[393353857,1762511441758,-504.54,0.00017999,2]
[393353858,1762511441767,-504.54,0.00017999,2]
[393353859,1762511441776,-883.9094268,0.00018,2]
[393353860,1762511441786,-1179.22434804,0.00018,2]
[393353861,1762511441795,-500.0,0.00018,2]
[393353862,1762511441805,-33455.27144498,0.00018,2]
[393353863,1762511441817,-705.3824852,0.00018,2]
[393353864,1762511441831,-263.18574999,0.00018,2]
[393353865,1762511441842,-1198.33477387,0.00018,2]
[393353866,1762511441993,-2158.56812267,0.00018,2]
[393353877,1762511443212,-250.0,0.00017,2]
[393353878,1762511443221,-690172.12088847,0.00018,2]
[393353879,1762511443231,-218.91659384,0.00018,2]
[393353880,1762511443240,-500.0,0.00018055,2]
[393353881,1762511443249,-264.0,0.00018066,2]
[393353882,1762511443259,-1000.0,0.00018082,2]
[393353883,1762511443268,-1762.9039034,0.000181,2]
[393353884,1762511443277,-150.0,0.00018134,2]
[393353885,1762511443286,-500.0,0.00018134,2]
[393353886,1762511443295,-150.0,0.00018134,2]
[393353887,1762511443304,-150.0,0.00018134,2]
[393353888,1762511443313,-150.0,0.00018134,2]
[393353889,1762511443322,-500.0,0.00018134,2]
[393353890,1762511443332,-500.0,0.00018134,2]
[393353891,1762511443341,-150.0,0.00018134,2]
[393353892,1762511443351,-500.0,0.00018134,2]
[393353893,1762511443361,-150.0,0.00018134,2]
[393353894,1762511443370,-154.5547493,0.00018134,2]
[393353895,1762511443379,-500.0,0.00018134,2]
[393353896,1762511443390,-656.0,0.00018134,2]
[393353897,1762511443399,-208.1083224,0.00018134,2]
[393353898,1762511443408,-500.0,0.00018134,2]
[393353899,1762511443418,-529.0,0.00018134,2]
[393353900,1762511443427,-500.0,0.00018134,2]
[393353901,1762511443436,-500.0,0.00018134,2]
[393353902,1762511443445,-150.0,0.00018134,2]
[393353903,1762511443455,-270.95215059,0.00018135,2]
[393353904,1762511443470,-150.0,0.00018135,2]
[393353905,1762511443490,-150.0,0.00018135,2]
[393353906,1762511443507,-150.0,0.00018135,2]
[393353907,1762511443516,-2351.0,0.00018149,2]
[393353908,1762511443526,-1127.21,0.00018158,2]
[393353909,1762511443535,-158.85,0.00018216,2]
[393353910,1762511443544,-500.0,0.00018218,2]
[393353911,1762511443554,-504.54,0.00018229,2]
[393353912,1762511443563,-3897.53483,0.0001823,2]
[393353913,1762511443571,-364.18,0.00018247,2]
[393353914,1762511443581,-166.66,0.00018266,2]
[393353915,1762511443590,-150.0,0.00018271,2]
[393353916,1762511443599,-233.33506662,0.00018271,2]
[393353917,1762511443608,-156.32912669,0.00018271,2]
[393353918,1762511443618,-150.0,0.00018271,2]
[393353919,1762511443627,-150.0,0.00018271,2]
[393353920,1762511443636,-500.0,0.00018271,2]
[393353921,1762511443645,-500.0,0.00018271,2]
[393353922,1762511443654,-150.0,0.00018271,2]
[393353923,1762511443663,-500.0,0.00018271,2]
[393353924,1762511443674,-150.0,0.00018271,2]
[393353925,1762511443683,-500.0,0.00018271,2]
[393353926,1762511443692,-656.0,0.00018271,2]
[393353927,1762511443702,-500.0,0.00018271,2]
[393353928,1762511443711,-529.0,0.00018271,2]
[393353929,1762511443720,-500.0,0.00018271,2]
[393353930,1762511443729,-500.0,0.00018271,2]
[393353931,1762511443738,-150.0,0.00018271,2]
[393353932,1762511443748,-150.0,0.00018272,2]
[393353934,1762511443757,-150.0,0.00018272,2]
[393353936,1762511443767,-150.0,0.00018272,2]
[393353938,1762511443777,-150.0,0.00018408,2]
[393353940,1762511443787,-150.0,0.00018408,2]
[393353942,1762511443796,-150.0,0.00018408,2]
[393353943,1762511443805,-500.0,0.00018408,2]
[393353944,1762511443814,-500.0,0.00018408,2]
[393353945,1762511443824,-181.37299051,0.00018408,2]
[393353946,1762511443834,-157.56828376,0.00018408,2]
[393353947,1762511443843,-150.0,0.00018408,2]
[393353948,1762511443853,-500.0,0.00018408,2]
[393353949,1762511443862,-656.0,0.00018408,2]
[393353950,1762511443871,-500.0,0.00018408,2]
[393353951,1762511443880,-529.0,0.00018408,2]
[393353952,1762511443889,-373.72728903,0.00018408,2]
[393353953,1762511443898,-500.0,0.00018408,2]
[393353954,1762511443907,-150.0,0.00018408,2]
[393353955,1762511443916,-230.87944646,0.00018409,2]
[393353956,1762511443925,-150.0,0.00018409,2]
[393353957,1762511443934,-207.27976634,0.00018409,2]
[393353958,1762511443944,-500.0,0.00018444,2]
[393353959,1762511443955,-500.0,0.00018444,2]
[393353960,1762511443965,-472.7124189,0.00018444,2]
[393353961,1762511443974,-1000.0,0.00018521,2]
[393353962,1762511443983,-1111.11938114,0.00018521,2]
[393353963,1762511443993,-1000.0,0.00018521,2]
[393353964,1762511444002,-269.52066072,0.00018521,2]
[393353965,1762511444011,-502.54057635,0.00018521,2]
[393353966,1762511444020,-1000.0,0.00018521,2]
[393353967,1762511444029,-1000.0,0.00018521,2]
[393353968,1762511444039,-708.4299984,0.00018521,2]
[393353969,1762511444047,-364.18,0.00018521,2]
[393353970,1762511444056,-154.60451121,0.00018545,2]
[393353971,1762511444065,-150.0,0.00018545,2]
[393353972,1762511444074,-150.0,0.00018545,2]
[393353973,1762511444083,-500.0,0.00018545,2]
[393353974,1762511444093,-500.0,0.00018545,2]
[393353975,1762511444102,-150.0,0.00018545,2]
[393353976,1762511444111,-500.0,0.00018545,2]
[393353977,1762511444120,-656.0,0.00018545,2]
[393353978,1762511444131,-500.0,0.00018545,2]
[393353979,1762511444140,-529.0,0.00018545,2]
[393353980,1762511444149,-223.00202241,0.00018545,2]
[393353981,1762511444158,-150.0,0.00018545,2]
[393353982,1762511444168,-218.24179502,0.00018546,2]
[393353983,1762511444177,-736.0,0.00018629,2]
[393353984,1762511444185,-1000.0,0.00018676,2]
[393353985,1762511444194,-158.98498589,0.00018682,2]
[393353986,1762511444203,-156.55778374,0.00018682,2]
[393353987,1762511444212,-500.0,0.00018682,2]
[393353988,1762511444222,-407.89774482,0.00018682,2]
[393353989,1762511444231,-222.70415926,0.00018682,2]
[393353990,1762511444240,-244.37088904,0.00018682,2]
[393353991,1762511444249,-656.0,0.00018682,2]
[393353992,1762511444258,-500.0,0.00018682,2]
[393353993,1762511444267,-529.0,0.00018682,2]
[393353994,1762511444276,-159.45484298,0.00018682,2]
[393353995,1762511444285,-3897.53483,0.0001873,2]
[393353996,1762511444295,-410.96302396,0.00018751,2]
[393353997,1762511444304,-1000.0,0.0001876,2]
[393353998,1762511444313,-151.0,0.00018777,2]
[393353999,1762511444322,-1000.0,0.00018779,2]
[393354000,1762511444331,-68264.31804429,0.0001878,2]
[393354001,1762511444339,-364.18,0.00018795,2]
[393354002,1762511444348,-150.07,0.000188,2]
[393354003,1762511444357,-150.07,0.000188,2]
[393354004,1762511444366,-150.07,0.000188,2]
[393354005,1762511444375,-500.0,0.00018819,2]
[393354006,1762511444384,-656.0,0.00018819,2]
[393354007,1762511444393,-500.0,0.00018819,2]
[393354008,1762511444402,-529.0,0.00018819,2]
[393354009,1762511444411,-166.66,0.00018869,2]
[393354010,1762511444423,-3163.63163763,0.00018942,2]
[393354011,1762511444433,-500.0,0.00018956,2]
[393354012,1762511444442,-656.0,0.00018956,2]
[393354013,1762511444451,-500.0,0.00018956,2]
[393354014,1762511444460,-529.0,0.00018956,2]
[393354015,1762511444469,-510.5905813,0.00018973,2]
[393354016,1762511444478,-500.0,0.00018973,2]
[393354017,1762511444487,-500.0,0.00018973,2]
[393354018,1762511444497,-500.0,0.00018973,2]
[393354019,1762511444506,-510.55136191,0.00018973,2]
[393354020,1762511444516,-500.0,0.00018973,2]
[393354021,1762511444525,-501.40957897,0.00018973,2]
[393354022,1762511444535,-500.0,0.00018973,2]
[393354023,1762511444545,-500.0,0.00018973,2]
[393354024,1762511444554,-500.0,0.00018973,2]
[393354025,1762511444563,-500.0,0.00018973,2]
[393354026,1762511444572,-500.0,0.00018973,2]
[393354027,1762511444581,-150.07,0.0001899,2]
[393354028,1762511444591,-150.07,0.0001899,2]
[393354029,1762511444601,-150.07,0.0001899,2]
[393354030,1762511444610,-150.07,0.0001899,2]
[393354031,1762511444619,-150.07,0.0001899,2]
[393354032,1762511444629,-299.38779004,0.00018999,2]
[393354033,1762511444638,-504.54,0.00018999,2]
[393354034,1762511444648,-208.5743064,0.00019,5]
[393354035,1762511444657,-5120.67650425,0.00019,2]
[393354036,1762511444666,-694.30309994,0.00019,2]
[393354037,1762511444677,-2683.40998405,0.00019,2]
[393354038,1762511444686,-267200.46102856,0.00019,2]
[393354039,1762511444696,-300.0,0.00019,2]
[393354040,1762511444705,-264.0,0.00019017,2]
[393354041,1762511444714,-364.2141408,0.00019068,2]
[393354042,1762511444723,-1500.0,0.00019068,2]
[393354043,1762511444733,-1500.0,0.00019068,2]
[393354044,1762511444744,-1000.0,0.00019068,2]
[393354045,1762511444753,-1500.0,0.00019068,2]
[393354046,1762511444762,-500.0,0.00019093,2]
[393354047,1762511444771,-656.0,0.00019093,2]
[393354048,1762511444781,-500.0,0.00019093,2]
[393354049,1762511444790,-529.0,0.00019093,2]
[393354050,1762511444799,-200.0,0.00019178,2]
[393354051,1762511444808,-410.96302396,0.00019187,2]
[393354052,1762511444817,-152.07,0.00019201,2]
[393354053,1762511444826,-500.0,0.0001923,2]
[393354054,1762511444835,-656.0,0.0001923,2]
[393354055,1762511444844,-500.0,0.0001923,2]
[393354056,1762511444854,-529.0,0.0001923,2]
[393354057,1762511444863,-3897.53484,0.0001923,2]
[393354058,1762511444878,-300.0,0.00019284,2]
[393354059,1762511444887,-500.0,0.00019367,2]
[393354060,1762511444896,-656.0,0.00019367,2]
[393354061,1762511444906,-500.0,0.00019367,2]
[393354062,1762511444926,-529.0,0.00019367,2]
[393354063,1762511444937,-1000.0,0.00019438,2]
[393354064,1762511444947,-166.66,0.00019472,2]
[393354065,1762511444961,-500.0,0.00019504,2]
[393354066,1762511444970,-656.0,0.00019504,2]
[393354067,1762511444979,-201.67991909,0.00019504,2]
[393354068,1762511444988,-529.0,0.00019504,2]
[393354069,1762511444998,-150.07,0.00019511,2]
[393354070,1762511445007,-1000.0,0.00019521,2]
[393354071,1762511445016,-1000.0,0.00019521,2]
[393354072,1762511445026,-1000.0,0.00019521,2]
[393354073,1762511445035,-716.85911878,0.00019521,2]
[393354074,1762511445044,-1000.0,0.00019521,2]
[393354075,1762511445054,-1000.0,0.00019521,2]
[393354076,1762511445062,-1000.0,0.00019521,2]
[393354077,1762511445071,-1000.0,0.00019521,2]
[393354078,1762511445079,-151.0,0.00019521,7]
[393354079,1762511445088,-151.0,0.00019521,7]
[393354080,1762511445097,-151.0,0.00019521,7]
[393354081,1762511445106,-151.0,0.00019521,7]
[393354082,1762511445115,-151.0,0.00019521,7]
[393354083,1762511445124,-300.658385,0.00019521,7]
[393354084,1762511445132,-163.557123,0.00019521,7]
[393354085,1762511445141,-151.0,0.00019521,7]
[393354086,1762511445150,-151.0,0.00019521,7]
[393354087,1762511445158,-151.0,0.00019521,7]
[393354088,1762511445167,-661.272482,0.00019521,7]
[393354089,1762511445177,-661.272482,0.00019521,7]
[393354090,1762511445186,-661.272482,0.00019521,7]
[393354091,1762511445195,-661.272482,0.00019521,7]
[393354092,1762511445204,-154.948938,0.00019521,7]
[393354093,1762511445213,-163.106762,0.00019521,7]
[393354094,1762511445222,-151.0,0.00019521,7]
[393354095,1762511445231,-151.609357,0.00019521,7]
[393354096,1762511445240,-151.0,0.00019521,7]
[393354097,1762511445249,-155.843168,0.00019521,7]
[393354098,1762511445258,-151.0,0.00019521,7]
[393354099,1762511445267,-151.0,0.00019521,7]
[393354100,1762511445279,-224.81491,0.00019521,7]
[393354101,1762511445288,-151.0,0.00019521,7]
[393354102,1762511445297,-368.375632,0.00019521,7]
[393354103,1762511445307,-368.375632,0.00019521,7]
[393354104,1762511445316,-368.375632,0.00019521,7]
[393354105,1762511445326,-368.375632,0.00019521,7]
[393354106,1762511445335,-151.0,0.00019521,7]
[393354107,1762511445343,-3451.281288,0.00019521,7]
[393354108,1762511445352,-3451.281288,0.00019521,7]
[393354109,1762511445361,-3451.281288,0.00019521,7]
[393354110,1762511445370,-3451.281288,0.00019521,7]
[393354111,1762511445379,-151.0,0.00019521,7]
[393354112,1762511445387,-151.0,0.00019521,7]
[393354113,1762511445396,-151.0,0.00019521,7]
[393354114,1762511445405,-151.0,0.00019521,7]
[393354115,1762511445414,-151.0,0.00019521,7]
[393354116,1762511445423,-151.0,0.00019521,7]
[393354117,1762511445433,-1630.140865,0.00019521,7]
[393354118,1762511445442,-151.0,0.00019521,7]
[393354119,1762511445451,-151.0,0.00019521,7]
[393354120,1762511445460,-1630.140865,0.00019521,7]
[393354121,1762511445469,-1630.140865,0.00019521,7]
[393354122,1762511445478,-1630.140865,0.00019521,7]
[393354123,1762511445487,-151.0,0.00019521,7]
[393354124,1762511445496,-151.0,0.00019521,7]
[393354125,1762511445505,-151.0,0.00019521,7]
[393354126,1762511445514,-151.0,0.00019521,7]
[393354127,1762511445523,-1263.677778,0.00019521,7]
[393354128,1762511445532,-1263.677778,0.00019521,7]
[393354129,1762511445540,-1263.677778,0.00019521,7]
[393354130,1762511445549,-1263.677778,0.00019521,7]
[393354131,1762511445558,-158.638505,0.00019521,7]
[393354132,1762511445567,-151.0,0.00019521,7]
[393354133,1762511445576,-151.0,0.00019521,7]
[393354134,1762511445585,-455.158256,0.00019521,7]
[393354135,1762511445594,-455.158256,0.00019521,7]
[393354136,1762511445603,-455.158256,0.00019521,7]
[393354137,1762511445612,-455.158256,0.00019521,7]
[393354138,1762511445622,-151.0,0.00019521,7]
[393354139,1762511445631,-151.0,0.00019521,7]
[393354140,1762511445640,-151.0,0.00019521,7]
[393354141,1762511445650,-151.0,0.00019521,7]
[393354142,1762511445659,-271.678733,0.00019521,7]
[393354143,1762511445669,-151.0,0.00019521,7]
[393354144,1762511445682,-151.0,0.00019521,7]
[393354145,1762511445691,-296.415688,0.00019521,7]
[393354146,1762511445701,-151.0,0.00019521,7]
[393354147,1762511445711,-271.678733,0.00019521,7]
[393354148,1762511445720,-151.0,0.00019521,7]
[393354149,1762511445731,-271.678733,0.00019521,7]
[393354150,1762511445740,-151.0,0.00019521,7]
[393354151,1762511445750,-271.678733,0.00019521,7]
[393354152,1762511445904,-151.0,0.00019521,7]
[393354153,1762511445914,-151.0,0.00019521,7]
[393354154,1762511445927,-2000.0,0.00019616,2]
[393354155,1762511445936,-2000.0,0.00019616,2]
[393354156,1762511445947,-410.96302396,0.00019622,2]
[393354157,1762511445961,-500.0,0.00019641,2]
[393354158,1762511445970,-656.0,0.00019641,2]
[393354159,1762511445980,-529.0,0.00019641,2]
[393354160,1762511445991,-823.0,0.00019663,2]
[393354161,1762511446000,-3897.53483,0.0001973,2]
[393354162,1762511446009,-500.0,0.00019778,2]
[393354163,1762511446018,-656.0,0.00019778,2]
[393354164,1762511446028,-529.0,0.00019778,2]
[393354165,1762511446037,-150.07,0.00019805,2]
[393354166,1762511446046,-150.07,0.00019805,2]
[393354167,1762511446055,-150.07,0.00019805,2]
[393354168,1762511446064,-50790.7263353,0.00019809,2]
[393354169,1762511446073,-151.0,0.00019812,2]
[393354170,1762511446083,-504.54,0.00019814,2]
[393354171,1762511446092,-15137.8921169,0.00019815,2]
[393354172,1762511446102,-179779.4360491,0.00019815,2]
[393354173,1762511446111,-270.35188774,0.0001986,2]
[393354174,1762511446120,-400.0,0.00019863,2]
[393354175,1762511446129,-500.0,0.00019873,2]
[393354176,1762511446138,-500.0,0.00019873,2]
[393354177,1762511446147,-500.0,0.00019873,2]
[393354178,1762511446156,-500.0,0.00019873,2]
[393354179,1762511446165,-500.0,0.00019873,2]
[393354180,1762511446175,-500.0,0.00019873,2]
[393354181,1762511446185,-500.0,0.00019873,2]
[393354182,1762511446194,-318.06,0.00019882,2]
[393354183,1762511446204,-4874.77299672,0.000199,3]
[393354184,1762511446212,-500.0,0.00019915,2]
[393354185,1762511446222,-656.0,0.00019915,2]
[393354186,1762511446232,-529.0,0.00019915,2]
[393354187,1762511446241,-150.07,0.0001994,2]
[393354188,1762511446250,-150.07,0.0001994,2]
[393354189,1762511446259,-504.54,0.00019949,2]
[393354190,1762511446268,-109264.24556484,0.0001995,15]
[393354191,1762511446278,-160.87,0.0001996,2]
[393354192,1762511446287,-500.0,0.00019961,2]
[393354193,1762511446299,-504.82836893,0.00019961,2]
[393354194,1762511446308,-3292.0,0.00019964,2]
[393354195,1762511446318,-264.0,0.00019968,2]
[393354196,1762511446328,-5888.0,0.00019982,2]
[393354197,1762511446338,-3163.63163763,0.00019987,2]
[393354198,1762511446348,-150.07,0.0001999,2]
[393354199,1762511446358,-150.07,0.0001999,2]
[393354200,1762511446367,-150.07,0.0001999,2]
[393354201,1762511446376,-150.07,0.0001999,2]
[393354202,1762511446386,-150.07,0.0001999,2]
[393354203,1762511446396,-158.25209266,0.00019999,2]
[393354204,1762511446405,-504.54,0.00019999,2]
[393354205,1762511446414,-10820.30702064,0.0002,2]
[393354206,1762511446424,-1519.51893016,0.0002,2]